[Event "37th Zalakaros Festival 2018"]
[Site "Zalakaros"]
[Date "2018.06.01"]
[Round "8"]
[White "Li, Bo"]
[Black "Szeberenyi, Adam"]
[Result "1-0"]
[ECO "D23"]
[WhiteElo "2319"]
[BlackElo "2372"]
[Annotator "NA"]
[PlyCount "93"]
[EventDate "2018.??.??"]
[EventType "swiss"]
[EventCountry "HUN"]
[SourceTitle "playchess.com"]
[Source "ChessBase"]
[SourceQuality "1"]
[TimeControl "40/5400+30:1800+30"]

1. d4 {[%emt 0:00:20]} d5 {[%emt 0:00:37]} 2. c4 {[%emt 0:00:43]} dxc4 {[%emt 0:00:10]} 3. Nf3 {[%emt 0:01:56]} Nf6 {[%emt 0:00:07]} 4. Qa4+ {[%emt 0:02:38]} Nc6 {[%emt 0:00:31]} 5. Nc3 {[%emt 0:02:52]} Nd5 {[%emt 0:02:50]} 6. Qxc4 {[%emt 0:05:45]} Nb6 {[%emt 0:01:57]} 7. Qd3 {[%emt 0:02:48] LiveBook: 16 Partien} e5 {[%emt 0:00:14]} 8. dxe5 {[%emt 0:06:58]} Qxd3 {[%emt 0:00:08]} 9. exd3 {[%emt 0:00:20]} Nb4 {[%emt 0:00:12]} 10. Rb1 {[%emt 0:02:38]} (10. Nd4 $14) 10... Bf5 $11 {[%emt 0:03:20]} 11. Be3 {[%emt 0:14:54]} Rd8 {[%emt 0:12:18]} 12. Rd1 {[%emt 0:07:04]} Nxd3+ {[%emt 0:18:49]} 13. Bxd3 {[%emt 0:00:49]} Bxd3 {[%emt 0:00:09]} 14. Nd4 {[%emt 0:03:19]} Bc4 {[%emt 0:04:35]} 15. Ndb5 {[%emt 0:03:39]} Bb4 {[%emt 0:02:27]} 16. a3 {[%emt 0:09:32]} Bxb5 {[%emt 0:02:53]} 17. axb4 {[%emt 0:01:24]} Rxd1+ {[%emt 0:05:20]} 18. Kxd1 {[%emt 0:00:20]} Bc6 {[%emt 0:00:04]} 19. Bxb6 axb6 {[%emt 0:03:49]} 20. Kd2 {[%emt 0:06:43]} Ke7 {[%emt 0:02:38]} 21. Ke3 {[%emt 0:02:05]} Ke6 {[%emt 0:02:17]} 22. f4 {[%emt 0:00:16]} g5 {[%emt 0:05:12]} 23. fxg5 {[%emt 0:02:59]} h6 {[%emt 0:04:55]} 24. gxh6 {[%emt 0:06:00]} Rxh6 {[%emt 0:00:06]} 25. Kf2 {[%emt 0:01:34]} Kxe5 {[%emt 0:02:40]} 26. Re1+ {[%emt 0:00:38]} Kd4 {[%emt 0:00:51]} 27. b5 {[%emt 0:01:59]} Rxh2 {[%emt 0:04:11]} 28. bxc6 {[%emt 0:00:04]} bxc6 {[%emt 0:00:01]} 29. Re7 {[%emt 0:00:50]} b5 {[%emt 0:00:01]} 30. Rxc7 {[%emt 0:01:01]} b4 {[%emt 0:00:08]} 31. Ne2+ {[%emt 0:02:03]} Kc4 {[%emt 0:00:11]} 32. Rxc6+ {[%emt 0:00:34]} Kb3 {[%emt 0:00:06]} 33. Rb6 {[%emt 0:01:44]} Rh4 {[%emt 0:00:04]} 34. Rb7 {[%emt 0:02:30]} Kxb2 {[%emt 0:01:35]} 35. Rxf7 {[%emt 0:00:01]} b3 {[%emt 0:00:16]} 36. Rc7 {[%emt 0:01:47]} Ka3 {[%emt 0:06:11]} 37. Ra7+ {[%emt 0:00:34]} Kb2 {[%emt 0:02:18]} 38. Rb7 {[%emt 0:01:44]} Kc2 {[%emt 0:00:47]} 39. Rc7+ {[%emt 0:01:32]} Kd2 {[%emt 0:00:16]} 40. Rd7+ {[%emt 0:00:00]} Kc2 {[%emt 0:00:32]} 41. Nd4+ {[%emt 0:01:01]} Kc3 {[%emt 0:00:22]} 42. Nxb3 {[%emt 0:00:18]} Kxb3 {[%emt 0:00:10]} 43. Kf3 {[%emt 0:00:22]} Kc4 {[%emt 0:06:46]} 44. g4 {[%emt 0:00:05]} Kc5 {[%emt 0:02:31]} 45. Kf4 {[%emt 0:00:14]} Kc6 {[%emt 0:00:27]} 46. Rd1 {[%emt 0:00:10]} Rh8 {[%emt 0:00:18]} 47. g5 {[%emt 0:00:17]} 1-0

[Event "37th Zalakaros Festival 2018"]
[Site "Zalakaros"]
[Date "2018.06.01"]
[Round "8"]
[White "Borsos, Bogdan"]
[Black "Bozinovic, Bogdan"]
[Result "1/2-1/2"]
[ECO "A46"]
[WhiteElo "2277"]
[BlackElo "2176"]
[Annotator "NA"]
[PlyCount "112"]
[EventDate "2018.??.??"]
[EventType "swiss"]
[EventCountry "HUN"]
[SourceTitle "playchess.com"]
[Source "ChessBase"]
[SourceQuality "1"]
[TimeControl "40/5400+30:1800+30"]

1. d4 {[%emt 0:00:37]} Nf6 {[%emt 0:00:58]} 2. Nf3 {[%emt 0:01:06]} c5 {[%emt 0:00:58]} 3. c3 {[%emt 0:00:42]} e6 {[%emt 0:02:00]} 4. Bg5 {[%emt 0:01:39]} Nc6 {[%emt 0:00:47]} 5. e3 {[%emt 0:00:20]} h6 {[%emt 0:00:59]} 6. Bxf6 {[%emt 0:00:27]} Qxf6 {[%emt 0:00:11]} 7. Nbd2 {[%emt 0:00:13]} Qd8 {[%emt 0:04:11]} 8. Bd3 {[%emt 0:05:02]} b6 {[%emt 0:02:06]} 9. O-O {[%emt 0:01:14]} Bb7 {[%emt 0:00:26]} 10. a3 {[%emt 0:00:05]} Be7 {[%emt 0:01:44]} 11. b4 {[%emt 0:00:32]} O-O {[%emt 0:02:15]} 12. e4 {[%emt 0:06:57]} d6 {[%emt 0:04:27]} 13. Re1 {[%emt 0:02:05]} Qc7 {[%emt 0:00:53]} 14. Qe2 {[%emt 0:03:27]} Rfe8 {[%emt 0:01:40]} 15. Rac1 {[%emt 0:00:12]} Rac8 {[%emt 0:01:00]} 16. Nf1 {[%emt 0:10:58]} Nb8 {[%emt 0:08:00]} 17. Qd2 {[%emt 0:02:28]} Nd7 {[%emt 0:01:00]} 18. h3 {[%emt 0:01:23]} Qb8 $11 {[%emt 0:02:35]} 19. Ng3 {[%emt 0:02:47]} cxd4 {[%emt 0:04:21]} 20. cxd4 {[%emt 0:00:10]} Rxc1 {[%emt 0:00:34]} 21. Rxc1 {[%emt 0:00:41]} Rc8 {[%emt 0:00:07]} 22. Re1 {[%emt 0:10:24]} Qc7 {[%emt 0:00:41]} 23. Qe3 {[%emt 0:00:24]} Qc3 {[%emt 0:01:16]} 24. d5 {[%emt 0:01:28]} e5 {[%emt 0:04:26]} 25. Nf5 {[%emt 0:05:54]} Bf8 {[%emt 0:00:17]} 26. Bb5 {[%emt 0:09:07]} Nf6 {[%emt 0:03:11]} 27. Nd2 {[%emt 0:02:26]} Qxe3 {[%emt 0:09:40]} 28. Nxe3 {[%emt 0:00:19]} g6 {[%emt 0:02:02]} 29. f3 {[%emt 0:11:40]} h5 {[%emt 0:00:29]} 30. Kf2 {[%emt 0:02:51]} h4 {[%emt 0:03:06]} 31. Rd1 {[%emt 0:03:01]} Rc7 {[%emt 0:03:11]} 32. Bc6 {[%emt 0:03:06]} Nh5 {[%emt 0:01:53]} 33. Bxb7 {[%emt 0:03:13]} Rxb7 {[%emt 0:00:14]} 34. Rc1 {[%emt 0:00:02]} Nf4 {[%emt 0:04:30]} 35. Rc8 {[%emt 0:00:14]} Kg7 {[%emt 0:00:37]} 36. Ndc4 {[%emt 0:00:26]} Be7 {[%emt 0:00:52]} 37. Rc6 {[%emt 0:01:20]} Rd7 {[%emt 0:01:30]} 38. Nd1 {[%emt 0:01:34]} b5 {[%emt 0:03:35]} 39. Na5 {[%emt 0:00:23]} Bd8 {[%emt 0:01:36]} 40. Nc3 {[%emt 0:00:00]} Bxa5 {[%emt 0:01:45]} 41. bxa5 {[%emt 0:00:58]} b4 {[%emt 0:00:14]} 42. axb4 {[%emt 0:00:43]} Nd3+ {[%emt 0:00:09]} 43. Ke2 {[%emt 0:04:38]} Nxb4 {[%emt 0:00:16]} 44. Nb5 {[%emt 0:00:18]} Kf8 {[%emt 0:04:28]} 45. Rc8+ {[%emt 0:13:15]} Ke7 {[%emt 0:01:52]} 46. Rb8 {[%emt 0:02:47]} Na6 {[%emt 0:08:52]} 47. Ra8 {[%emt 0:00:09]} Nc7 {[%emt 0:00:10]} 48. Nxc7 {[%emt 0:00:07]} Rxc7 {[%emt 0:00:01]} 49. Kd3 {[%emt 0:00:22]} Kd7 {[%emt 0:03:36]} 50. a6 {[%emt 0:00:18]} Ke7 {[%emt 0:00:15]} 51. Kd2 {[%emt 0:03:36]} Kd7 {[%emt 0:00:15]} 52. Rh8 {[%emt 0:02:57]} Rc5 {[%emt 0:00:21]} 53. Ra8 {[%emt 0:00:05]} Rc7 {[%emt 0:00:05]} 54. Rf8 {[%emt 0:00:21]} Ke7 {[%emt 0:00:13]} 55. Rh8 {[%emt 0:01:10]} Rc5 {[%emt 0:00:07]} 56. Ra8 {[%emt 0:00:29]} Rc7 {[%emt 0:00:06]} 1/2-1/2

[Event "37th Zalakaros Festival 2018"]
[Site "Zalakaros"]
[Date "2018.06.01"]
[Round "8"]
[White "Saber, Yasser"]
[Black "Meszaros, Tamas"]
[Result "1/2-1/2"]
[ECO "E42"]
[WhiteElo "2266"]
[BlackElo "2407"]
[Annotator "NA"]
[PlyCount "53"]
[EventDate "2018.??.??"]
[EventType "swiss"]
[EventCountry "HUN"]
[SourceTitle "playchess.com"]
[Source "ChessBase"]
[SourceQuality "1"]
[TimeControl "40/5400+30:1800+30"]

1. d4 {[%emt 0:03:38]} Nf6 {[%emt 0:00:37]} 2. c4 {[%emt 0:00:20]} e6 {[%emt 0:00:06]} 3. Nc3 {[%emt 0:00:15]} Bb4 {[%emt 0:00:22]} 4. e3 {[%emt 0:00:24]} c5 {[%emt 0:00:45]} 5. Nge2 {[%emt 0:00:25]} cxd4 {[%emt 0:00:48]} 6. exd4 {[%emt 0:00:04] LiveBook: 1298 Games} O-O {[%emt 0:00:11]} 7. a3 {[%emt 0:00:09]} Be7 {[%emt 0:00:04]} 8. Nf4 {[%emt 0:00:09]} d6 {[%emt 0:00:45]} 9. Be2 {[%emt 0:00:37]} e5 {[%emt 0:05:48]} 10. dxe5 {[%emt 0:01:26]} dxe5 {[%emt 0:00:05]} 11. Nfd5 {[%emt 0:00:44]} Nxd5 {[%emt 0:00:10]} 12. cxd5 {[%emt 0:14:05]} Bd6 {[%emt 0:18:09]} 13. O-O {[%emt 0:01:09]} Na6 $11 {[%emt 0:09:10]} 14. Ne4 {[%emt 0:14:52]} Bf5 {[%emt 0:03:26]} 15. Bxa6 {[%emt 0:01:42]} bxa6 {[%emt 0:10:10]} 16. Re1 {[%emt 0:16:16]} Rb8 {[%emt 0:15:37]} 17. f3 {[%emt 0:07:16]} Bxe4 {[%emt 0:05:50]} 18. Rxe4 {[%emt 0:05:28]} f5 {[%emt 0:09:43]} 19. Re2 {[%emt 0:00:08]} Bc5+ {[%emt 0:06:24]} 20. Kh1 {[%emt 0:02:56]} Bd4 {[%emt 0:00:24]} 21. f4 {[%emt 0:15:35]} Qxd5 {[%emt 0:00:05]} 22. fxe5 {[%emt 0:00:46]} f4 {[%emt 0:00:49]} 23. Rf2 {[%emt 0:09:58]} Qxe5 {[%emt 0:00:37]} 24. Rf3 {[%emt 0:01:54]} Kh8 {[%emt 0:09:41]} 25. Bd2 {[%emt 0:01:29]} Rxb2 {[%emt 0:01:50]} 26. Rc1 {[%emt 0:00:28]} Rb6 {[%emt 0:01:00]} 27. Bxf4 1/2-1/2

[Event "37th Zalakaros Festival 2018"]
[Site "Zalakaros"]
[Date "2018.06.01"]
[Round "8"]
[White "Kernazhitsky, Leonid"]
[Black "Medancic, Rikard"]
[Result "1/2-1/2"]
[ECO "C42"]
[WhiteElo "2250"]
[BlackElo "2164"]
[Annotator "NA"]
[PlyCount "20"]
[EventDate "2018.??.??"]
[EventType "swiss"]
[EventCountry "HUN"]
[SourceTitle "playchess.com"]
[Source "ChessBase"]
[SourceQuality "1"]
[TimeControl "40/5400+30:1800+30"]

{[%evp 8,16,54,10,0,17,20,9,31,14,45]} 1. e4 {[%emt 0:00:03]} e5 {[%emt 0:00:37]} 2. Nf3 {[%emt 0:00:36]} Nf6 {[%emt 0:00:07]} 3. Nxe5 {[%emt 0:01:20]} d6 {[%emt 0:00:05]} 4. Nf3 {[%emt 0:00:09]} Nxe4 {[%emt 0:00:08]} 5. Nc3 {[%emt 0:00:12]} Nxc3 {[%emt 0:00:08]} 6. dxc3 {[%emt 0:00:05]} Be7 {[%emt 0:00:03]} 7. Be3 {[%emt 0:00:29]} Nc6 {[%emt 0:00:08] LiveBook: 622 Games} 8. Qd2 {[%emt 0:00:15]} Ne5 $14 {[%emt 0:00:22]} 9. Be2 {[%emt 0:05:51]} O-O {[%emt 0:05:42]} 10. O-O-O {[%emt 0:01:03]} Ng4 {[%emt 0:02:08]} 1/2-1/2

[Event "37th Zalakaros Festival 2018"]
[Site "Zalakaros"]
[Date "2018.06.01"]
[Round "8"]
[White "Hardicsay, Peter"]
[Black "Pasti, Aron"]
[Result "1-0"]
[ECO "A29"]
[WhiteElo "2211"]
[BlackElo "2064"]
[Annotator "NA"]
[PlyCount "73"]
[EventDate "2018.??.??"]
[EventType "swiss"]
[EventCountry "HUN"]
[SourceTitle "playchess.com"]
[Source "ChessBase"]
[SourceQuality "1"]
[TimeControl "40/5400+30:1800+30"]

1. c4 {[%emt 0:00:21]} e5 {[%emt 0:00:36]} 2. Nc3 {[%emt 0:00:15]} Nf6 {[%emt 0:00:04]} 3. Nf3 {[%emt 0:00:30]} Nc6 {[%emt 0:00:02]} 4. g3 {[%emt 0:00:18]} d5 {[%emt 0:00:02]} 5. cxd5 {[%emt 0:00:10]} Nxd5 {[%emt 0:00:08]} 6. Bg2 {[%emt 0:00:11]} Nb6 {[%emt 0:00:04] LiveBook: 3789 Games} 7. O-O {[%emt 0:00:32]} Be7 {[%emt 0:00:06]} 8. a3 {[%emt 0:02:18]} O-O {[%emt 0:00:11]} 9. b4 {[%emt 0:01:14]} Be6 {[%emt 0:00:13]} 10. d3 {[%emt 0:03:16]} a5 {[%emt 0:04:04]} 11. b5 {[%emt 0:02:32]} Nd4 {[%emt 0:00:14]} 12. Rb1 {[%emt 0:07:35]} Nd5 $11 {[%emt 0:17:31]} 13. Na4 {[%emt 0:18:49]} Nxf3+ {[%emt 0:18:54]} 14. Bxf3 {[%emt 0:00:29]} f5 {[%emt 0:00:55]} 15. Qc2 {[%emt 0:05:04]} Rc8 {[%emt 0:05:04]} 16. Nc5 {[%emt 0:08:26]} Bxc5 {[%emt 0:01:14]} 17. Qxc5 {[%emt 0:00:08]} Qd6 {[%emt 0:04:01]} 18. Qc2 {[%emt 0:06:29]} b6 {[%emt 0:11:57]} 19. Bb2 {[%emt 0:02:13]} Rfe8 {[%emt 0:03:53]} 20. Rfc1 {[%emt 0:03:34]} Bf7 {[%emt 0:02:18]} 21. Qa4 {[%emt 0:03:51]} Ne7 {[%emt 0:04:40]} 22. Bg2 {[%emt 0:01:41]} Bd5 {[%emt 0:03:04]} 23. e4 {[%emt 0:01:48]} Be6 {[%emt 0:12:13]} 24. d4 {[%emt 0:08:22]} exd4 {[%emt 0:01:51]} 25. Qxd4 {[%emt 0:01:32]} Qxd4 {[%emt 0:00:08]} 26. Bxd4 {[%emt 0:00:05]} fxe4 {[%emt 0:00:24]} 27. Bxe4 {[%emt 0:00:35]} Bf5 {[%emt 0:04:08]} 28. Bc2 {[%emt 0:07:43]} Bxc2 {[%emt 0:00:46]} 29. Rxc2 {[%emt 0:00:16]} Nf5 {[%emt 0:01:39]} 30. Bb2 {[%emt 0:06:57]} Nd6 {[%emt 0:01:43]} 31. Rd1 {[%emt 0:02:11]} Nxb5 32. Rd7 {[%emt 0:00:25]} g6 {[%emt 0:03:42]} 33. Rg7+ {[%emt 0:00:45]} Kf8 {[%emt 0:00:03]} 34. Rxh7 {[%emt 0:00:14]} c5 {[%emt 0:00:43]} 35. Rc4 {[%emt 0:00:46]} Nd4 {[%emt 0:00:41]} 36. Bxd4 {[%emt 0:00:17]} cxd4 {[%emt 0:00:17]} 37. Rxc8 {[%emt 0:00:10]} 1-0

[Event "37th Zalakaros Festival 2018"]
[Site "Zalakaros"]
[Date "2018.06.01"]
[Round "8"]
[White "Pribelszky, Bence"]
[Black "Fancsy, Imre"]
[Result "1-0"]
[ECO "B43"]
[WhiteElo "2187"]
[BlackElo "2388"]
[Annotator "NA"]
[PlyCount "55"]
[EventDate "2018.??.??"]
[EventType "swiss"]
[EventCountry "HUN"]
[SourceTitle "playchess.com"]
[Source "ChessBase"]
[SourceQuality "1"]
[TimeControl "40/5400+30:1800+30"]

1. e4 {[%emt 0:00:03]} c5 {[%emt 0:05:55]} 2. Nf3 {[%emt 0:00:08]} e6 {[%emt 0:00:21]} 3. d4 {[%emt 0:00:09]} cxd4 {[%emt 0:00:11]} 4. Nxd4 {[%emt 0:00:09]} a6 {[%emt 0:00:18]} 5. Nc3 {[%emt 0:00:11]} Qc7 {[%emt 0:00:14]} 6. Bd3 {[%emt 0:00:24]} Nc6 {[%emt 0:00:18]} 7. Nb3 {[%emt 0:00:36]} Nf6 {[%emt 0:02:01]} 8. O-O {[%emt 0:00:38]} b5 {[%emt 0:00:45]} 9. f4 {[%emt 0:02:56]} d6 {[%emt 0:00:24]} 10. Qf3 {[%emt 0:02:30]} Be7 {[%emt 0:11:22]} 11. Be3 {[%emt 0:08:30]} O-O {[%emt 0:02:55]} 12. a4 {[%emt 0:04:38]} b4 {[%emt 0:07:30] LiveBook: 5 Games} 13. Nd1 $11 {[%emt 0:02:03]} e5 {[%emt 0:06:53]} 14. f5 {[%emt 0:02:36]} Bb7 {[%emt 0:09:41]} 15. Nf2 {[%emt 0:03:25]} Na5 {[%emt 0:08:14]} 16. Nxa5 {[%emt 0:07:53]} Qxa5 {[%emt 0:00:44]} 17. g4 {[%emt 0:04:36]} d5 {[%emt 0:06:24]} 18. g5 {[%emt 0:05:08]} dxe4 {[%emt 0:01:14]} 19. Nxe4 {[%emt 0:02:55]} Nxe4 {[%emt 0:00:28]} 20. Bxe4 {[%emt 0:00:10]} Bxe4 {[%emt 0:00:23]} 21. Qxe4 {[%emt 0:00:11]} Rfe8 {[%emt 0:02:33]} 22. f6 {[%emt 0:09:17]} Bc5 {[%emt 0:04:22]} 23. Rae1 {[%emt 0:06:46]} Rac8 {[%emt 0:11:59]} 24. fxg7 {[%emt 0:04:58]} Qxa4 {[%emt 0:11:52]} 25. Bxc5 {[%emt 0:08:05]} Rxc5 {[%emt 0:00:16]} 26. Qb7 {[%emt 0:02:54]} Kxg7 {[%emt 0:05:04]} 27. Rxf7+ {[%emt 0:02:00]} Kg6 {[%emt 0:00:07]} 28. Rf6+ {[%emt 0:01:30]} 1-0

[Event "37th Zalakaros Festival 2018"]
[Site "Zalakaros"]
[Date "2018.06.01"]
[Round "8"]
[White "Sonnberger, Thomas"]
[Black "Srinath, Rao S V"]
[Result "0-1"]
[ECO "A04"]
[WhiteElo "2186"]
[BlackElo "2363"]
[Annotator "NA"]
[PlyCount "68"]
[EventDate "2018.??.??"]
[EventType "swiss"]
[EventCountry "HUN"]
[SourceTitle "playchess.com"]
[Source "ChessBase"]
[SourceQuality "1"]
[TimeControl "40/5400+30:1800+30"]

1. Nf3 {[%emt 0:01:15]} g6 {[%emt 0:03:37]} 2. g3 {[%emt 0:01:46]} Bg7 {[%emt 0:00:04]} 3. d4 {[%emt 0:00:03]} e6 {[%emt 0:01:18]} 4. e4 {[%emt 0:03:01]} Ne7 {[%emt 0:00:07]} 5. Bg2 {[%emt 0:00:52]} d5 {[%emt 0:00:06]} 6. Nc3 {[%emt 0:01:25]} Nbc6 {[%emt 0:00:36]} 7. exd5 {[%emt 0:01:30]} exd5 {[%emt 0:00:17]} 8. O-O {[%emt 0:01:35]} Bg4 {[%emt 0:00:46]} 9. Ne2 {[%emt 0:00:34]} Qd7 {[%emt 0:00:20]} 10. c3 {[%emt 0:03:33]} f6 {[%emt 0:00:36]} 11. Nf4 {[%emt 0:02:34]} g5 {[%emt 0:02:00]} 12. Nd3 {[%emt 0:02:44]} b6 {[%emt 0:01:27]} 13. h3 {[%emt 0:02:15]} Bf5 {[%emt 0:01:56]} ({Doch nicht} 13... Bxh3 {[#]} 14. Nfe5 $1 $16 {[%mdl 512]}) 14. b4 {[%emt 0:06:45]} a6 {[%emt 0:01:46]} 15. a4 {[%emt 0:00:57]} h5 {[%emt 0:00:19]} 16. h4 {[%emt 0:00:37]} Ng6 {[%emt 0:02:11]} 17. Re1+ {[%emt 0:02:40]} Kf7 $18 {[%emt 0:06:17]} (17... Nce7 $142 18. hxg5 Bg4) 18. hxg5 {[%emt 0:11:16]} Bg4 {[%emt 0:04:23]} 19. Bf4 {[%emt 0:09:54]} h4 {[%emt 0:03:32]} 20. b5 {[%emt 0:02:32]} axb5 {[%emt 0:02:49]} 21. axb5 {[%emt 0:00:02]} Rxa1 {[%emt 0:00:06]} 22. Qxa1 {[%emt 0:01:21]} Nce7 {[%emt 0:04:37]} 23. gxf6 {[%emt 0:01:27]} Bxf6 {[%emt 0:00:11]} 24. Nfe5+ {[%emt 0:04:43]} Bxe5 {[%emt 0:00:13]} 25. Nxe5+ {[%emt 0:00:43]} Nxe5 {[%emt 0:00:06]} 26. Bxe5 {[%emt 0:01:40]} Rg8 {[%emt 0:05:18]} 27. Qa7 {[%emt 0:04:45]} h3 {[%emt 0:00:45]} 28. Bh1 {[%emt 0:08:11]} Qf5 {[%emt 0:02:07]} 29. Bf4 {[%emt 0:02:43]} Rc8 {[%emt 0:01:58]} 30. Qa2 {[%emt 0:01:17]} h2+ {[%emt 0:01:04]} 31. Kxh2 {[%emt 0:01:12]} Rh8+ {[%emt 0:00:04]} 32. Kg1 {[%emt 0:00:36]} Rxh1+ {[%emt 0:00:14]} 33. Kxh1 {[%emt 0:00:16]} Bf3+ {[%emt 0:00:03]} 34. Kg1 {[%emt 0:00:19]} Qh3 {[%emt 0:01:24]} 0-1

[Event "37th Zalakaros Festival 2018"]
[Site "Zalakaros"]
[Date "2018.06.01"]
[Round "8"]
[White "Piroska, Istvan"]
[Black "Doric, Nenad"]
[Result "0-1"]
[ECO "B84"]
[WhiteElo "2159"]
[BlackElo "2250"]
[Annotator "NA"]
[PlyCount "70"]
[EventDate "2018.??.??"]
[EventType "swiss"]
[EventCountry "HUN"]
[SourceTitle "playchess.com"]
[Source "ChessBase"]
[SourceQuality "1"]
[TimeControl "40/5400+30:1800+30"]

1. e4 {[%emt 0:00:15]} c5 {[%emt 0:00:57]} 2. Nf3 {[%emt 0:00:15]} d6 {[%emt 0:00:21]} 3. d4 {[%emt 0:00:09]} cxd4 {[%emt 0:00:08]} 4. Nxd4 {[%emt 0:00:10]} Nf6 {[%emt 0:00:13]} 5. Nc3 {[%emt 0:00:09]} a6 {[%emt 0:00:21]} 6. Be2 {[%emt 0:00:43]} e6 {[%emt 0:01:23] LiveBook: 4720 Games} 7. O-O {[%emt 0:00:38]} Be7 {[%emt 0:00:11]} 8. f4 {[%emt 0:01:04]} Qc7 {[%emt 0:00:52]} 9. Bf3 {[%emt 0:00:47]} O-O {[%emt 0:01:02]} 10. Be3 {[%emt 0:00:42]} Nc6 {[%emt 0:02:29]} 11. Nxc6 {[%emt 0:00:48]} bxc6 {[%emt 0:00:14]} 12. Na4 {[%emt 0:00:17]} Rb8 {[%emt 0:04:56]} 13. c4 {[%emt 0:00:50]} c5 {[%emt 0:03:42]} 14. Qc2 {[%emt 0:00:33]} Nd7 {[%emt 0:02:52]} 15. b3 {[%emt 0:01:44]} Bb7 {[%emt 0:01:23]} 16. Rad1 {[%emt 0:00:50]} Rbd8 {[%emt 0:02:26]} 17. Nc3 {[%emt 0:02:25]} Bf6 {[%emt 0:03:23]} 18. Rd3 {[%emt 0:03:21]} Nb8 {[%emt 0:01:38]} 19. Qf2 {[%emt 0:07:35]} Nc6 {[%emt 0:04:29]} 20. Ne2 {[%emt 0:06:03]} Be7 {[%emt 0:12:13]} 21. Kh1 $11 {[%emt 0:01:54]} Qb8 {[%emt 0:09:52]} 22. Ng3 {[%emt 0:03:59]} Qa8 {[%emt 0:02:37]} 23. Rfd1 {[%emt 0:08:08]} a5 {[%emt 0:06:41]} 24. e5 {[%emt 0:03:28]} dxe5 {[%emt 0:09:16]} 25. Bxc5 {[%emt 0:07:48]} exf4 {[%emt 0:04:33]} 26. Ne2 {[%emt 0:09:53]} Rxd3 {[%emt 0:02:28]} 27. Rxd3 {[%emt 0:00:26]} Ne5 {[%emt 0:00:25]} 28. Bxb7 {[%emt 0:01:44]} Bxc5 {[%emt 0:02:10]} 29. Qxc5 {[%emt 0:04:14]} Nxd3 {[%emt 0:00:10]} 30. Qb6 {[%emt 0:02:38]} Qb8 {[%emt 0:03:17]} 31. h3 {[%emt 0:00:51]} Qe5 {[%emt 0:01:54]} 32. Nd4 {[%emt 0:02:42]} Qe1+ {[%emt 0:01:04]} 33. Kh2 {[%emt 0:00:07]} Qg3+ {[%emt 0:00:04]} 34. Kg1 {[%emt 0:00:32]} Qe3+ {[%emt 0:00:13]} 35. Kh2 {[%emt 0:00:15]} e5 {[%emt 0:00:15]} 0-1